[Event "87th Spanish Championship 2022"]
[Site "Linares"]
[Date "2022.08.11"]
[Round "1.11"]
[White "Rodriguez Lopez, Rafael"]
[Black "Narciso Dublan, Marc"]
[Result "1/2-1/2"]
[ECO "B04"]
[WhiteElo "2172"]
[BlackElo "2461"]
[Annotator "TA"]
[PlyCount "122"]
[EventDate "2022.08.11"]
[EventType "swiss"]
[EventCountry "ESP"]
[SourceTitle "playchess.com"]
[Source "ChessBase"]
[SourceQuality "1"]
[TimeControl "5400+30"]

{[%evp 17,122,44,46,38,44,44,42,35,37,37,53,56,33,27,45,0,0,0,0,0,37,-24,0,-97,-96,-104,-104,-93,-81,-100,-64,-64,-47,-42,0,0,0,-72,0,0,9,13,41,-8,-8,-91,0,0,0,0,0,0,0,0,0,0,18,0,141,141,141,141,168,152,221,221,221,221,239,239,239,237,224,67,70,70,295,248,244,-12,143,143,143,143,143,81,81,81,81,81,95,95,102,0,107,0,0,0,0,0,0,0,0,0,0,0,0]} 1. e4 {[%emt 0:00:03]} Nf6 {[%emt 0:00:35]} 2. e5 {[%emt 0:00:06]} Nd5 {[%emt 0:00:08]} 3. d4 {[%emt 0:00:09]} d6 {[%emt 0:00:19]} 4. Nf3 {[%emt 0:00:08]} dxe5 {[%emt 0:00:34]} 5. Nxe5 {[%emt 0:00:36]} g6 {[%emt 0:00:30]} 6. Bc4 {[%emt 0:00:52]} Be6 {[%emt 0:00:10]} 7. Bb3 {[%emt 0:00:25]} Bg7 {[%emt 0:00:38]} 8. O-O {[%emt 0:00:26]} O-O {[%emt 0:06:48]} 9. Re1 {[%emt 0:00:19]} c6 {[%emt 0:05:48]} 10. c3 {[%emt 0:00:34] B04: Alekhine's Defence: 4 Nf3.} Nd7 {[%emt 0:00:42]} 11. Nf3 {[%emt 0:00:32]} Bg4 {[%emt 0:13:06][%cal Oe7e5]} 12. h3 {[%emt 0:03:09] White is slightly better.} Bxf3 {[%emt 0:00:11]} 13. Qxf3 {[%emt 0:00:05]} e5 {[%emt 0:01:20]} 14. Bxd5 {[%emt 0:05:46]} cxd5 {[%emt 0:00:03]} 15. Qxd5 {[%emt 0:00:12] [#]} Re8 $146 {[%emt 0:05:56]} ({Predecessor:} 15... exd4 16. cxd4 Nb6 17. Qxb7 Qxd4 18. Nc3 Nc4 19. Rd1 Qh4 20. Qf3 Rab8 21. b3 Qf6 22. Qxf6 Bxf6 {1-0 (52) Bator,R (2405)-Astrom,R (2260) Stockholm 1987}) 16. Qxb7 {[%emt 0:21:00]} exd4 {[%emt 0:01:34]} 17. Rd1 {[%emt 0:01:29]} Nc5 {[%emt 0:04:43]} 18. Qf3 {[%emt 0:01:03]} Qb6 {[%emt 0:06:26]} 19. c4 {[%emt 0:24:19]} ({Better is} 19. cxd4 $14 Ne6 20. Nc3) 19... Ne4 {[%emt 0:20:53][%mdl 1024] Black has compensation.} 20. Na3 {[%emt 0:02:43]} (20. Nd2 $11 f5 21. Qb3) 20... Rad8 $1 $17 {[%emt 0:15:36][%cal Od4d3]} 21. Rb1 {[%emt 0:06:58]} d3 {[%emt 0:04:25]} 22. Be3 {[%emt 0:00:39]} Qb4 {[%emt 0:01:04]} 23. c5 {[%emt 0:08:33]} Bxb2 {[%emt 0:06:25]} 24. Nc4 {[%emt 0:00:16]} Qxc4 {[%emt 0:00:28]} 25. Rxb2 {[%emt 0:00:08]} Rd7 {[%emt 0:02:47] Against Rb7} 26. Rc1 {[%emt 0:02:38]} Qd5 {[%emt 0:00:15]} 27. Rb3 {[%emt 0:01:23]} (27. c6 $11 Rc7 28. Rd2) 27... Qc6 {[%emt 0:00:59]} (27... d2 $17 28. Rd1 Qc4) 28. Rd1 $11 {[%emt 0:00:33]} Red8 {[%emt 0:00:41]} 29. Bg5 {[%emt 0:00:55]} f6 {[%emt 0:00:02]} 30. Be3 {[%emt 0:05:23]} (30. Bxf6 Rf7 31. Rbxd3 Rxd3 32. Qxd3 Rxf6 33. Qc4+ Kg7 $17) (30. Bh6 $14) 30... Qa4 {[%emt 0:00:47]} 31. Bh6 {[%emt 0:02:01]} (31. Qf4 $11) 31... Qxa2 {[%emt 0:01:01]} (31... Nxc5 $17 32. Rc3 Qd4) 32. Rb4 {[%emt 0:01:49]} Nxc5 {[%emt 0:00:56]} 33. Qxf6 {[%emt 0:00:47][%cal Ob4d4] aiming for Rd4!} Qe6 {[%emt 0:00:23]} 34. Qc3 {[%emt 0:01:34]} Ne4 {[%emt 0:00:25]} 35. Qe1 {[%emt 0:01:01]} Re8 {[%emt 0:00:24]} 36. Qe3 {[%emt 0:01:25]} d2 {[%emt 0:00:53][%cal Og6g5]} 37. Rd4 {[%emt 0:01:05]} Nc5 {[%emt 0:00:33]} (37... a5 $11) 38. Rxd7 $16 {[%emt 0:02:16]} (38. R1xd2 $6 Qxe3 39. fxe3 Rb7 $14) 38... Nxd7 {[%emt 0:00:13][%cal Bc5d7,Bd7f6,Bf6e4,Be4c3][%mdl 32]} 39. Qxd2 {[%emt 0:00:13]} ({Much less strong is} 39. Rxd2 Qxe3 40. Bxe3 Nb6 $16) 39... Nf6 {[%emt 0:00:14]} 40. Qd4 {[%emt 0:00:52]} a6 {[%emt 0:00:44]} (40... Qf7 $16 {is a better defense.} 41. Ra1 Re4 42. Qxa7 Qxa7 43. Rxa7 Ne8) 41. Qa7 $18 {[%emt 0:00:45][%csl Gh6][%cal Ra7g7]} Qf7 {[%emt 0:00:44] Inhibits Qg7+.} 42. Qxa6 {[%emt 0:00:17] And now Rd3 would win.} Ne4 {[%emt 0:00:14]} 43. Qb6 {[%emt 0:00:31] Hoping for Rd8.} Qf6 {[%emt 0:00:42] Prevents Rd8.} 44. Qa7 {[%emt 0:00:34] Threatens to win with Rd7.} g5 {[%emt 0:00:28]} 45. f3 $2 {[%emt 0:03:32]} (45. Qa2+ $18 Qe6 46. Qd5) 45... Nc3 {[%emt 0:00:31]} 46. Qd7 {[%emt 0:00:46]} Rb8 {[%emt 0:00:33]} (46... Qe5 $14) 47. Qc7 {[%emt 0:00:43]} Re8 {[%emt 0:00:33]} 48. Rd6 {[%emt 0:01:39]} ({White must play} 48. Qd6 $1 $18 {[%cal Rd6f6]} Kf7 49. Qxf6+ Kxf6 50. Rd6+ Ke5 51. Rc6 Ne2+ 52. Kf2) 48... Re1+ $2 {[%emt 0:00:32]} (48... Ne2+ $11 49. Kf2 Qe5) 49. Kf2 $16 {[%emt 0:00:08]} Ne4+ {[%emt 0:00:29]} 50. Kxe1 {[%emt 0:00:07] Intending Rd8+ and mate. Dancing on a razor blade.} Nxd6 {[%emt 0:00:02] [#]} 51. Bxg5 {[%emt 0:00:49][%mdl 512]} Qxg5 {[%emt 0:00:52]} 52. Qxd6 {[%emt 0:00:05]} (52. Qb8+ {is more complex.} Kf7 53. Qxd6 Qxg2 54. Qf4+) 52... Qxg2 {[%emt 0:00:10][%mdl 4096] Endgame KQ-KQ} 53. Qe6+ {[%emt 0:00:43]} Kf8 {[%emt 0:00:19]} 54. Qf5+ {[%emt 0:00:08]} Ke8 {[%emt 0:00:23]} 55. f4 {[%emt 0:00:47]} ({But not} 55. Qxh7 $6 Qxf3 56. Qh4 Qe3+ 57. Kf1 Qd3+ 58. Kg2 Qe2+ 59. Kh1 Qd1+ 60. Kh2 Qe2+ 61. Kg1 Qd1+ 62. Kf2 Qd2+ 63. Kf3 Qd3+ 64. Kg4 Qe4+ 65. Kh5 Qxh4+ 66. Kxh4 Kf8 $11) ({White should try} 55. Qg4 $16 Qa2 56. Qf4) 55... Qf3 {[%emt 0:01:13] [#]} (55... Qg1+ $11 {keeps the balance.} 56. Ke2 Qg2+ 57. Ke1 Qg3+ 58. Ke2 Qg2+ 59. Kd3 Qf3+ 60. Kd4 Qf2+ 61. Kc4 Qf1+ 62. Kd4 Qf2+ 63. Kd3 Qf3+ 64. Kd2 Qf2+ 65. Kc3 Qe1+ 66. Kd4 Qf2+) 56. Kd2 {[%emt 0:00:30]} ({Reject} 56. Qxh7 $6 Qxf4 57. Ke2 Qc4+ 58. Ke3 Qe6+ 59. Qe4 Qxe4+ 60. Kxe4 Kf8 $11) ({White has to play} 56. Qg4 $1 $16 {[%cal Rg4f3]} Qd5 57. Kf2) 56... h5 $11 {[%emt 0:00:23] The position is equal.} 57. Qe6+ {[%emt 0:00:30]} Kf8 {[%emt 0:00:39]} 58. Qe3 {[%emt 0:00:07]} Qd5+ {[%emt 0:00:18]} 59. Ke2 {[%emt 0:00:13]} Qg2+ {[%emt 0:00:23]} 60. Ke1 {[%emt 0:00:07] Strongly threatening Qc5+.} Kf7 {[%emt 0:00:45]} 61. f5 {[%emt 0:00:43]} Qh1+ {[%emt 0:00:25] White really could win this.  Weighted Error Value: White=0.30/Black=0.31} 1/2-1/2

[Event "87th Spanish Championship 2022"]
[Site "Linares"]
[Date "2022.08.11"]
[Round "1.12"]
[White "Ladron De Guevara Pinto, Paolo"]
[Black "Ilinca Ilinca, Felix Antonio"]
[Result "1-0"]
[ECO "B40"]
[WhiteElo "2444"]
[BlackElo "2162"]
[Annotator "TA"]
[PlyCount "111"]
[EventDate "2022.08.11"]
[EventType "swiss"]
[EventCountry "ESP"]
[SourceTitle "playchess.com"]
[Source "ChessBase"]
[SourceQuality "1"]
[TimeControl "5400+30"]

{[%evp 15,111,22,24,22,21,13,17,0,25,18,8,11,24,0,5,7,33,35,33,19,30,49,45,11,13,15,12,4,7,0,0,0,0,0,0,0,0,0,0,0,0,0,22,22,22,22,23,25,74,69,76,55,62,14,9,9,35,14,14,5,5,0,3,0,14,14,509,509,509,509,2041,1533,4530,4204,3633,3402,3027,2248,1777,1714,6736,6709,29972,29973,29972,29974,29973,29973,29970,29970,29975,29977,29978,29979,29979,29980,29979,29979]} 1. e4 {[%emt 0:00:04]} c5 {[%emt 0:00:47]} 2. Nf3 {[%emt 0:00:09]} e6 {[%emt 0:01:08]} 3. d4 {[%emt 0:00:15]} cxd4 {[%emt 0:00:56]} 4. Nxd4 {[%emt 0:00:08]} Nf6 {[%emt 0:00:39]} 5. Nc3 {[%emt 0:00:06]} Nc6 {[%emt 0:00:31]} 6. a3 {[%emt 0:00:08]} d5 {[%emt 0:04:43]} 7. Bb5 $1 {[%emt 0:00:35] 7.Bb5 scores better than 7.exd5.} Bd7 {[%emt 0:01:10]} 8. exd5 {[%emt 0:00:15]} exd5 {[%emt 0:03:22]} 9. O-O {[%emt 0:00:11] B45: Sicilian Four Knights.} Be7 {[%emt 0:01:32]} 10. Re1 {[%emt 0:00:18]} O-O {[%emt 0:01:15]} 11. h3 {[%emt 0:01:16] [#] The position is equal.} Re8 $146 {[%emt 0:04:32]} ({Predecessor:} 11... a6 12. Ba4 Nxd4 13. Qxd4 Bxa4 14. Qxa4 Bc5 15. Bg5 h6 16. Bh4 g5 17. Bg3 b5 {0-1 (36) Karjakin,S (2752)-Grachev,B (2612) Chess.com INT 2020}) 12. Bg5 {[%emt 0:07:31]} h6 {[%emt 0:07:03]} 13. Bh4 {[%emt 0:20:08]} a6 {[%emt 0:14:02]} 14. Bf1 {[%emt 0:08:49]} Qb6 {[%emt 0:16:00]} 15. Nf3 {[%emt 0:16:01] Black must now prevent Bxf6.} d4 {[%emt 0:11:00]} (15... Qxb2 $2 16. Na4 Qxa1 17. Qxa1 $18) 16. Bxf6 {[%emt 0:09:35]} Bxf6 {[%emt 0:00:33]} (16... gxf6 $2 17. Nd5 Qd8 18. Nxd4 $18) 17. Nd5 {[%emt 0:00:25] Pair of Knights!} Qd8 {[%emt 0:00:44]} 18. Rxe8+ {[%emt 0:03:27]} (18. Qd3 {looks sharper.} Ne5 19. Nxf6+ Qxf6 20. Rxe5 Rxe5 21. Nxe5 Qxe5 22. Rd1) 18... Bxe8 {[%emt 0:00:37]} 19. Nxf6+ {[%emt 0:00:07]} Qxf6 {[%emt 0:00:40]} 20. Qd3 {[%emt 0:04:04]} Rd8 {[%emt 0:06:57]} 21. Qb3 {[%emt 0:13:22]} b5 {[%emt 0:09:12]} 22. a4 {[%emt 0:04:57]} Ne5 {[%emt 0:03:47]} 23. Nxe5 {[%emt 0:00:32]} (23. axb5 {feels hotter.} Nxf3+ 24. Qxf3 Qxf3 25. gxf3 Bxb5 26. Bd3) 23... Qxe5 {[%emt 0:00:21]} 24. axb5 {[%emt 0:00:16]} Bxb5 {[%emt 0:03:04]} 25. Bxb5 {[%emt 0:03:17]} axb5 $11 {[%emt 0:00:59][%mdl 4096] Endgame KQR-KQR} 26. Qd3 {[%emt 0:02:31]} Rc8 {[%emt 0:01:43] Against c3} 27. Rd1 {[%emt 0:00:43]} g6 {[%emt 0:01:36]} 28. b3 {[%emt 0:01:36]} Rc3 {[%emt 0:00:57]} 29. Qxd4 {[%emt 0:00:13]} Qxd4 {[%emt 0:00:40]} 30. Rxd4 {[%emt 0:00:05]} Rxc2 {[%emt 0:00:24] KR-KR} 31. Rd5 {[%emt 0:00:04]} b4 {[%emt 0:00:46]} (31... Rc1+ $11 32. Kh2 Rc2) 32. Rd4 $16 {[%emt 0:00:17]} Rc1+ {[%emt 0:01:02]} 33. Kh2 {[%emt 0:00:04]} Rc2 {[%emt 0:00:06]} 34. f4 {[%emt 0:00:21]} ({Reject} 34. Rxb4 Rxf2 35. Kg3 Rb2 $11) (34. f3 $14) 34... Kg7 $11 {[%emt 0:00:58]} 35. Rxb4 {[%emt 0:00:05]} g5 {[%emt 0:01:00]} 36. fxg5 {[%emt 0:00:58]} hxg5 {[%emt 0:00:06]} 37. Rc4 {[%emt 0:02:09]} Rb2 {[%emt 0:00:28]} 38. Rc3 {[%emt 0:00:04]} Kg6 {[%emt 0:00:51]} 39. Kg3 {[%emt 0:00:30]} f6 {[%emt 0:01:16]} 40. Kf3 {[%emt 0:00:20]} Kh5 $2 {[%emt 0:01:04][%mdl 8192] [#] Black cannot hold the game after this.} (40... f5 $1 $11) 41. g4+ $1 $18 {[%emt 0:02:17]} Kg6 {[%emt 0:01:01] [#]} 42. Ke4 {[%emt 0:00:07] Prevents f5+.} Re2+ {[%emt 0:01:09]} (42... Kf7 $142 43. Kd4 Rf2) 43. Kd4 {[%emt 0:01:10] Threatens to win with b4.} Rd2+ {[%emt 0:00:47]} 44. Rd3 {[%emt 0:01:09]} Rb2 {[%emt 0:00:29]} 45. Kc4 {[%emt 0:00:10]} Kf7 {[%emt 0:00:22]} 46. b4 {[%emt 0:00:04]} Ke6 {[%emt 0:00:18]} 47. b5 {[%emt 0:00:26]} f5 {[%emt 0:00:28]} 48. gxf5+ {[%emt 0:00:33]} Kxf5 {[%emt 0:00:07]} 49. Rb3 {[%emt 0:01:27] White mates.} Rc2+ {[%emt 0:00:27]} 50. Kd5 {[%emt 0:00:11]} Rd2+ {[%emt 0:00:14]} 51. Kc6 {[%emt 0:00:07]} Rc2+ {[%emt 0:00:06]} 52. Kb7 {[%emt 0:00:35]} g4 {[%emt 0:00:24]} 53. hxg4+ {[%emt 0:00:19]} Kxg4 {[%emt 0:00:06]} 54. b6 {[%emt 0:00:21]} Kf5 {[%emt 0:00:32]} 55. Ka6 {[%emt 0:00:12]} Ra2+ {[%emt 0:00:43]} 56. Kb5 {[%emt 0:00:05] Weighted Error Value: White=0.05 (flawless) /Black=0.43} 1-0

[Event "87th Spanish Championship 2022"]
[Site "Linares"]
[Date "2022.08.11"]
[Round "1.13"]
[White "Horcajuelo Rocamora, Martin"]
[Black "Garrido Outon, Alex"]
[Result "1-0"]
[ECO "E73"]
[WhiteElo "2107"]
[BlackElo "2436"]
[Annotator "TA"]
[PlyCount "91"]
[EventDate "2022.08.11"]
[EventType "swiss"]
[EventCountry "ESP"]
[SourceTitle "playchess.com"]
[Source "ChessBase"]
[SourceQuality "1"]
[TimeControl "5400+30"]

{[%evp 14,91,51,44,49,31,26,39,26,33,29,27,31,33,33,-25,0,-64,-72,-66,-41,-142,-141,-264,-160,-162,194,189,177,169,179,181,357,354,318,324,433,443,435,431,478,454,616,486,558,547,661,557,625,622,575,569,616,316,374,386,362,358,347,332,336,329,510,292,514,343,553,321,1056,1056,1100,1056,941,1003,981,952,672,638,919,893]} 1. d4 {[%emt 0:00:06]} Nf6 {[%emt 0:00:06]} 2. c4 {[%emt 0:00:28]} g6 {[%emt 0:00:09]} 3. Nc3 {[%emt 0:00:23]} Bg7 {[%emt 0:00:09]} 4. e4 {[%emt 0:00:33]} d6 {[%emt 0:00:08]} 5. Be2 {[%emt 0:00:29]} O-O {[%emt 0:00:11]} 6. Be3 {[%emt 0:00:50]} e5 {[%emt 0:00:12]} 7. d5 {[%emt 0:00:33]} Na6 {[%emt 0:00:18]} 8. h4 {[%emt 0:00:49][%cal Bh2h4,Bh4h5,Bh5h6][%mdl 32]} Nc5 {[%emt 0:00:25] E73: King's Indian: Averbakh Variation without 6...c5.} 9. Qc2 {[%emt 0:00:21]} c6 {[%emt 0:00:12]} 10. h5 {[%emt 0:02:47]} cxd5 {[%emt 0:00:19] White is slightly better.} 11. cxd5 {[%emt 0:01:05]} ({But not} 11. h6 d4 12. hxg7 Re8 $15) 11... Qa5 {[%emt 0:00:14] [#] Threatens to win with ...Ncxe4.} 12. h6 {[%emt 0:01:18]} Bh8 {[%emt 0:00:04]} 13. f3 {[%emt 0:00:12]} Nh5 {[%emt 0:00:15] [#]} 14. g4 $146 {[%emt 0:08:30]} (14. Rb1 $14 Na6 15. g4) ({Predecessor:} 14. Rxh5 gxh5 15. Qd2 Bf6 16. f4 Nb3 17. axb3 Qxa1+ 18. Kf2 Kh8 19. Bxh5 Bd7 20. fxe5 dxe5 {1-0 (41) Gunina,V (2471)-Kashlinskaya,A (2490) Chess.com INT 2021}) 14... Nf4 {[%emt 0:01:11]} (14... Ng3 $5 {[%cal Rg3h1]} 15. Rh2 Bd7 $11) 15. Kf2 {[%emt 0:14:24] Inhibits Ng2.} (15. Bf1 $11) 15... f5 $1 $15 {[%emt 0:18:00]} 16. gxf5 {[%emt 0:10:10]} gxf5 {[%emt 0:00:10][%cal Bg6f5,Bf5e4][%mdl 32]} 17. Rb1 {[%emt 0:05:26]} (17. a3 $15 fxe4 18. fxe4 Nxd5+ 19. Nf3 Nxc3 20. Rhg1+ Kf7 21. bxc3) 17... fxe4 $17 {[%emt 0:05:41]} 18. Bxf4 {[%emt 0:14:00]} (18. fxe4 $17 {was worth a try.} Nxe4+ 19. Nxe4 (19. Qxe4 $2 Bf5 $19) 19... Nxe2+ 20. Kg2 Nf4+ 21. Bxf4 Rxf4 22. Nh3 Bxh3+ 23. Rxh3 Qxd5 24. Re3) 18... Rxf4 {[%emt 0:18:41]} ({Stronger than} 18... exf4 19. Nxe4 Bf5 20. Bd3 $17) 19. b4 {[%emt 0:07:57]} Nd3+ $4 {[%emt 0:00:30][%mdl 8192] [#]} (19... e3+ $1 $19 {and life is good for Black.} 20. Kg2 Rxb4 21. Rxb4 Qxb4) 20. Qxd3 $3 $18 {[%emt 0:01:39][%mdl 512] White now steadily converts the win.} exd3 {[%emt 0:10:29]} (20... Qb6+ 21. Qe3) 21. bxa5 {[%emt 0:00:15]} dxe2 {[%emt 0:00:28]} 22. Ngxe2 {[%emt 0:05:56]} Rf6 {[%emt 0:09:02]} (22... Rf7 {is a better defense.}) 23. Ne4 {[%emt 0:02:20]} Rg6 {[%emt 0:00:26]} 24. N2g3 {[%emt 0:00:35]} Kf8 {[%emt 0:12:36]} 25. Rbc1 {[%emt 0:02:42] And now Rc7 would win.} Bd7 {[%emt 0:00:07]} 26. Rc7 $1 {[%emt 0:01:50][%csl LRb7,LRd7]} Ke8 {[%emt 0:00:01]} 27. Rxb7 {[%emt 0:01:33]} a6 {[%emt 0:01:50]} 28. Rc1 {[%emt 0:03:02]} Rxh6 {[%emt 0:03:49]} 29. Rcc7 {[%emt 0:00:36]} Rd8 {[%emt 0:00:38]} 30. Rb6 {[%emt 0:00:59]} Rh2+ {[%emt 0:01:19]} 31. Kg1 {[%emt 0:00:16]} Rxa2 {[%emt 0:00:05]} 32. Nxd6+ {[%emt 0:00:29]} Kf8 {[%emt 0:05:24]} 33. Rbb7 {[%emt 0:02:06] Threatening mate with Ngf5.} Ra1+ {[%emt 0:07:14]} 34. Kf2 {[%emt 0:00:50] Dancing on a razor blade.} Ra2+ {[%emt 0:00:05]} 35. Ne2 {[%emt 0:03:42]} Ke7 {[%emt 0:01:59]} 36. Ne4 {[%emt 0:02:29]} Rxa5 {[%emt 0:01:04]} 37. N2c3 {[%emt 0:02:50] Pair of Knights!} Ke8 {[%emt 0:00:53]} (37... h5 {keeps fighting.} 38. d6+ Ke8) 38. d6 {[%emt 0:01:33]} Bg7 $2 {[%emt 0:02:36]} (38... h5 39. Nc5 Rxc5) 39. Kg3 {[%emt 0:01:24] Black must now prevent Nc5.} h5 $2 {[%emt 0:01:21]} (39... Bf8 {was called for.} 40. Ra7 Bg7) 40. Kh4 {[%emt 0:00:30]} Ra3 $2 {[%emt 0:01:10]} (40... Bh8 41. Kxh5 Ra1) 41. Kxh5 {[%emt 0:01:02] White is clearly winning.} Ra1 {[%emt 0:00:44]} 42. Nd5 {[%emt 0:01:54]} Rh1+ {[%emt 0:00:21]} 43. Kg5 {[%emt 0:00:06]} Rg1+ {[%emt 0:00:48]} 44. Kh4 {[%emt 0:00:05]} Rh1+ {[%emt 0:00:04]} 45. Kg3 {[%emt 0:00:06] aiming for Nb6.} Rh6 {[%emt 0:00:05]} 46. Nb6 {[%emt 0:00:16] Weighted Error Value: White=0.40/Black=0.67} 1-0

[Event "87th Spanish Championship 2022"]
[Site "Linares"]
[Date "2022.08.11"]
[Round "1.14"]
[White "Plazuelo Pascual, Juan"]
[Black "Serrano Almendros, Alejandro"]
[Result "1-0"]
[ECO "D35"]
[WhiteElo "2448"]
[BlackElo "2177"]
[Annotator "TA"]
[PlyCount "59"]
[EventDate "2022.08.11"]
[EventType "swiss"]
[EventCountry "ESP"]
[SourceTitle "playchess.com"]
[Source "ChessBase"]
[SourceQuality "1"]
[TimeControl "5400+30"]

{[%evp 10,59,20,8,28,30,28,31,39,28,31,20,27,30,62,48,48,37,40,30,78,76,76,72,78,74,77,81,112,80,94,95,100,39,225,166,166,164,160,160,343,341,369,358,304,114,435,437,29973,29972,29994,29995]} 1. d4 {[%emt 0:00:04]} e6 {[%emt 0:00:16]} 2. c4 {[%emt 0:00:13]} d5 {[%emt 0:00:10]} 3. Nc3 {[%emt 0:00:27]} Nf6 {[%emt 0:00:12]} 4. cxd5 {[%emt 0:00:14]} exd5 {[%emt 0:00:10]} 5. Bg5 {[%emt 0:00:05]} c6 {[%emt 0:00:16]} 6. e3 {[%emt 0:00:04]} Be6 {[%emt 0:00:25] 6...Bd6 is a critical line. D35: Queen's Gambit Declined: Exchange Variation.} 7. Bd3 {[%emt 0:02:15]} Nbd7 {[%emt 0:00:07]} 8. h3 {[%emt 0:04:08]} Be7 {[%emt 0:02:26] White is slightly better.} 9. Nge2 {[%emt 0:01:35]} h6 {[%emt 0:02:47]} 10. Bh4 {[%emt 0:01:54]} O-O {[%emt 0:00:32]} 11. O-O {[%emt 0:01:03]} c5 {[%emt 0:01:49]} 12. dxc5 {[%emt 0:01:12] White is more active.} Nxc5 {[%emt 0:00:42] [#]} 13. Bc2 $146 {[%emt 0:10:10]} ({Predecessor:} 13. Rc1 Nxd3 14. Qxd3 Rc8 15. Rfd1 Qa5 16. Nd4 Rfd8 17. a3 a6 18. Rc2 Qb6 19. Rdc1 {½-½ (78) Tang,A (2538)-Bortnyk,M (2473) Chess.com INT 2020}) 13... Qb6 {[%emt 0:02:59]} 14. Rb1 {[%emt 0:11:39]} Rac8 {[%emt 0:06:05]} (14... Nce4 $11 {is superior.}) 15. Bxf6 $16 {[%emt 0:07:24]} Bxf6 {[%emt 0:00:19]} 16. Nxd5 {[%emt 0:00:28]} Bxd5 {[%emt 0:00:48]} 17. Qxd5 {[%emt 0:00:05]} Rfd8 {[%emt 0:02:01] [#]} 18. Qf3 {[%emt 0:05:29]} ({Reject} 18. Qf5 g6 19. Qf4 Bg7 $11) 18... Nd3 {[%emt 0:25:25]} 19. Bb3 {[%emt 0:04:43]} Qc6 {[%emt 0:02:13]} 20. Qh5 {[%emt 0:09:09]} Rc7 {[%emt 0:03:44]} 21. Ng3 {[%emt 0:12:07]} (21. Rfd1 $16) 21... Nxb2 $2 {[%emt 0:06:38]} (21... Bxb2 $14 22. Rfd1 Bf6) 22. Rbc1 {[%emt 0:03:59]} Qb6 {[%emt 0:10:38]} 23. Ne4 {[%emt 0:02:23]} Re7 {[%emt 0:00:57]} 24. Qf5 {[%emt 0:02:21]} Be5 $2 {[%emt 0:02:59]} (24... Nd3 $2 25. Rc8 Rxe4 26. Rxd8+ Qxd8 27. Qxe4) (24... Rde8 $16) 25. Rc8 $18 {[%emt 0:03:24] And now Rfc1 would win.} ({Weaker is} 25. Bxf7+ Rxf7 26. Qxe5 Nd3 $17) 25... Rxc8 {[%emt 0:02:01]} 26. Qxc8+ {[%emt 0:00:06]} Kh7 {[%emt 0:00:03] [#]} 27. Rc1 $2 {[%emt 0:07:03]} (27. Qf8 $1 $18 {[%cal Rf8e7] and the rest is easy.} Qc7 28. f4) 27... Qb5 $2 {[%emt 0:12:16][%mdl 8192]} (27... Rc7 $16 28. Rxc7 Qxc7 29. Qxc7 Bxc7) 28. Rc5 {[%emt 0:02:22]} Qb4 {[%emt 0:02:44] [#]} (28... Qe8 $18 29. Qg4 (29. Qxe8 Rxe8 30. Bxf7 Re7 $16) 29... Qf8 30. Ng5+ hxg5) 29. Rxe5 $1 {[%emt 0:00:59][%mdl 512]} Rxe5 {[%emt 0:00:29] [#]} (29... Nd3 30. Qf5+) 30. Bxf7 $1 {[%emt 0:00:33] Weighted Error Value: White=0.13 (very precise) /Black=0.84} 1-0